{"text_format":"3","workbook":"xlsx","n_sheets":3,"sheets":["Данные потенциальных клиентов","Прогнозируемые продажи ","Ежемесячный взвешенный прогноз"],"not_rendered":{"charts":1,"defined_names":10},"read":"whole","date_system":"1900"}

{"sheet":"Данные потенциальных клиентов","index":0,"n_rows":9,"n_cols":10,"rows_kept":9,"merged":[[3,1,3,8]]}
[null,"Название компании"]
[null,"Журнал подробных данных о потенциальных клиентах"]
[null,{"$f":"TODAY()","v":"2018-07-25"}]
[null,{"$f":"Название_компании","v":"Название компании"},{"$nulls":7},"КОНФИДЕНЦИАЛЬНО"]
[null,"Название потенциального клиента","Контактные данные потенциального клиента","Источник потенциального клиента","Регион потенциального клиента","Тип потенциального клиента","Потенциальная возможность","Вероятность \nпродажи","Прогноз завершения сделки","Взвешенный прогноз"]
[null,"A. Datum Corporation",{"$nulls":3},"Стратегический",{"v":300000,"d":"300,000.00 ₽"},{"v":0.9,"d":"90%"},"Январь",{"$f":"IFERROR(IF(ДанныеПотенциальногоКлиента[Вероятность \nпродажи]<>\"\",ДанныеПотенциальногоКлиента[Вероятность \nпродажи]*ДанныеПотенциальногоКлиента[Потенциальная возможность],\"\"),\"\")","v":{"v":270000,"d":"270,000.00 ₽"}}]
[null,"Adventure Works",{"$nulls":3},"Стратегический",{"v":200000,"d":"200,000.00 ₽"},{"v":0.1,"d":"10%"},"Февраль",{"$f":"IFERROR(IF(ДанныеПотенциальногоКлиента[Вероятность \nпродажи]<>\"\",ДанныеПотенциальногоКлиента[Вероятность \nпродажи]*ДанныеПотенциальногоКлиента[Потенциальная возможность],\"\"),\"\")","v":{"v":20000,"d":"20,000.00 ₽"}}]
[null,"Alpine Ski House",{"$nulls":3},"Тактический",{"v":100000,"d":"100,000.00 ₽"},{"v":0.2,"d":"20%"},"Март",{"$f":"IFERROR(IF(ДанныеПотенциальногоКлиента[Вероятность \nпродажи]<>\"\",ДанныеПотенциальногоКлиента[Вероятность \nпродажи]*ДанныеПотенциальногоКлиента[Потенциальная возможность],\"\"),\"\")","v":{"v":20000,"d":"20,000.00 ₽"}}]
[null,"Итого",{"$nulls":4},{"$f":"SUBTOTAL(109,ДанныеПотенциальногоКлиента[Потенциальная возможность])","v":{"v":600000,"d":"600,000.00 ₽"}},null,null,{"$f":"SUBTOTAL(109,ДанныеПотенциальногоКлиента[Взвешенный прогноз])","v":{"v":310000,"d":"310,000.00 ₽"}}]

{"sheet":"Прогнозируемые продажи ","index":1,"n_rows":21,"n_cols":14,"rows_kept":21,"merged":[[3,1,3,11],[3,12,3,13]]}
[null,{"$f":"Название_компании","v":"Название компании"}]
[null,"Прогнозируемые продажи"]
[null,{"$f":"ДатаЖурнала","v":"2018-07-25"}]
[null,{"$f":"Название_компании","v":"Название компании"},{"$nulls":10},"КОНФИДЕНЦИАЛЬНО"]
[null,"Название потенциального клиента","Прогноз на \nянварь","Прогноз на \nфевраль","Прогноз на \nмарт","Прогноз на \nапрель","Прогноз на \nмай","Прогноз на \nиюнь","Прогноз на июль","Прогноз на \nавгуст","Прогноз на \nсентябрь","Прогноз на \nоктябрь","Прогноз на \nноябрь","Прогноз на \nдекабрь"]
[null,{"$f":"IFERROR(IF(AND(ДанныеПотенциальногоКлиента[Название потенциального клиента] <> \"\", ROW(ПрогнозируемыеПродажи[Название потенциального клиента])<>ПоследняяЗапись),ДанныеПотенциальногоКлиента[Название потенциального клиента], \"\"),\"\")","v":"A. Datum Corporation"},{"$f":"IFERROR(IF(ДанныеПотенциальногоКлиента[Прогноз завершения сделки] <>\"\",IF(ДанныеПотенциальногоКлиента[Прогноз завершения сделки]= \"январь\",ДанныеПотенциальногоКлиента[Взвешенный прогноз],0),\"\"),\"\")","v":{"v":270000,"d":"270,000 ₽"}},{"$f":"IFERROR(IF(ДанныеПотенциальногоКлиента[Прогноз завершения сделки] <>\"\",IF(ДанныеПотенциальногоКлиента[Прогноз завершения сделки] = \"февраль\",ДанныеПотенциальногоКлиента[Взвешенный прогноз],0),\"\"),\"\")","v":{"v":0,"d":"0 ₽"}},{"$f":"IFERROR(IF(ДанныеПотенциальногоКлиента[Прогноз завершения сделки] <>\"\",IF(ДанныеПотенциальногоКлиента[Прогноз завершения сделки] = \"март\",ДанныеПотенциальногоКлиента[Взвешенный прогноз],0),\"\"),\"\")","v":{"v":0,"d":"0 ₽"}},{"$f":"IFERROR(IF(ДанныеПотенциальногоКлиента[Прогноз завершения сделки] <>\"\",IF(ДанныеПотенциальногоКлиента[Прогноз завершения сделки] = \"апрель\",ДанныеПотенциальногоКлиента[Взвешенный прогноз],0),\"\"),\"\")","v":{"v":0,"d":"0 ₽"}},{"$f":"IFERROR(IF(ДанныеПотенциальногоКлиента[Прогноз завершения сделки] <>\"\",IF(ДанныеПотенциальногоКлиента[Прогноз завершения сделки] = \"май\",ДанныеПотенциальногоКлиента[Взвешенный прогноз],0),\"\"),\"\")","v":{"v":0,"d":"0 ₽"}},{"$f":"IFERROR(IF(ДанныеПотенциальногоКлиента[Прогноз завершения сделки] <>\"\",IF(ДанныеПотенциальногоКлиента[Прогноз завершения сделки] = \"июнь\",ДанныеПотенциальногоКлиента[Взвешенный прогноз],0),\"\"),\"\")","v":{"v":0,"d":"0 ₽"}},{"$f":"IFERROR(IF(ДанныеПотенциальногоКлиента[Прогноз завершения сделки] <>\"\",IF(ДанныеПотенциальногоКлиента[Прогноз завершения сделки] = \"июль\",ДанныеПотенциальногоКлиента[Взвешенный прогноз],0),\"\"),\"\")","v":{"v":0,"d":"0 ₽"}},{"$f":"IFERROR(IF(ДанныеПотенциальногоКлиента[Прогноз завершения сделки] <>\"\",IF(ДанныеПотенциальногоКлиента[Прогноз завершения сделки] = \"август\",ДанныеПотенциальногоКлиента[Взвешенный прогноз],0),\"\"),\"\")","v":{"v":0,"d":"0 ₽"}},{"$f":"IFERROR(IF(ДанныеПотенциальногоКлиента[Прогноз завершения сделки] <>\"\",IF(ДанныеПотенциальногоКлиента[Прогноз завершения сделки] = \"сентябрь\",ДанныеПотенциальногоКлиента[Взвешенный прогноз],0),\"\"),\"\")","v":{"v":0,"d":"0 ₽"}},{"$f":"IFERROR(IF(ДанныеПотенциальногоКлиента[Прогноз завершения сделки] <>\"\",IF(ДанныеПотенциальногоКлиента[Прогноз завершения сделки] = \"октябрь\",ДанныеПотенциальногоКлиента[Взвешенный прогноз],0),\"\"),\"\")","v":{"v":0,"d":"0 ₽"}},{"$f":"IFERROR(IF(ДанныеПотенциальногоКлиента[Прогноз завершения сделки] <>\"\",IF(ДанныеПотенциальногоКлиента[Прогноз завершения сделки] = \"ноябрь\",ДанныеПотенциальногоКлиента[Взвешенный прогноз],0),\"\"),\"\")","v":{"v":0,"d":"0 ₽"}},{"$f":"IFERROR(IF(ДанныеПотенциальногоКлиента[Прогноз завершения сделки] <>\"\",IF(ДанныеПотенциальногоКлиента[Прогноз завершения сделки] = \"декабрь\",ДанныеПотенциальногоКлиента[Взвешенный прогноз],0),\"\"),\"\")","v":{"v":0,"d":"0 ₽"}}]
[null,{"$f":"IFERROR(IF(AND(ДанныеПотенциальногоКлиента[Название потенциального клиента] <> \"\", ROW(ПрогнозируемыеПродажи[Название потенциального клиента])<>ПоследняяЗапись),ДанныеПотенциальногоКлиента[Название потенциального клиента], \"\"),\"\")","v":"Adventure Works"},{"$f":"IFERROR(IF(ДанныеПотенциальногоКлиента[Прогноз завершения сделки] <>\"\",IF(ДанныеПотенциальногоКлиента[Прогноз завершения сделки]= \"январь\",ДанныеПотенциальногоКлиента[Взвешенный прогноз],0),\"\"),\"\")","v":{"v":0,"d":"0 ₽"}},{"$f":"IFERROR(IF(ДанныеПотенциальногоКлиента[Прогноз завершения сделки] <>\"\",IF(ДанныеПотенциальногоКлиента[Прогноз завершения сделки] = \"февраль\",ДанныеПотенциальногоКлиента[Взвешенный прогноз],0),\"\"),\"\")","v":{"v":20000,"d":"20,000 ₽"}},{"$f":"IFERROR(IF(ДанныеПотенциальногоКлиента[Прогноз завершения сделки] <>\"\",IF(ДанныеПотенциальногоКлиента[Прогноз завершения сделки] = \"март\",ДанныеПотенциальногоКлиента[Взвешенный прогноз],0),\"\"),\"\")","v":{"v":0,"d":"0 ₽"}},{"$f":"IFERROR(IF(ДанныеПотенциальногоКлиента[Прогноз завершения сделки] <>\"\",IF(ДанныеПотенциальногоКлиента[Прогноз завершения сделки] = \"апрель\",ДанныеПотенциальногоКлиента[Взвешенный прогноз],0),\"\"),\"\")","v":{"v":0,"d":"0 ₽"}},{"$f":"IFERROR(IF(ДанныеПотенциальногоКлиента[Прогноз завершения сделки] <>\"\",IF(ДанныеПотенциальногоКлиента[Прогноз завершения сделки] = \"май\",ДанныеПотенциальногоКлиента[Взвешенный прогноз],0),\"\"),\"\")","v":{"v":0,"d":"0 ₽"}},{"$f":"IFERROR(IF(ДанныеПотенциальногоКлиента[Прогноз завершения сделки] <>\"\",IF(ДанныеПотенциальногоКлиента[Прогноз завершения сделки] = \"июнь\",ДанныеПотенциальногоКлиента[Взвешенный прогноз],0),\"\"),\"\")","v":{"v":0,"d":"0 ₽"}},{"$f":"IFERROR(IF(ДанныеПотенциальногоКлиента[Прогноз завершения сделки] <>\"\",IF(ДанныеПотенциальногоКлиента[Прогноз завершения сделки] = \"июль\",ДанныеПотенциальногоКлиента[Взвешенный прогноз],0),\"\"),\"\")","v":{"v":0,"d":"0 ₽"}},{"$f":"IFERROR(IF(ДанныеПотенциальногоКлиента[Прогноз завершения сделки] <>\"\",IF(ДанныеПотенциальногоКлиента[Прогноз завершения сделки] = \"август\",ДанныеПотенциальногоКлиента[Взвешенный прогноз],0),\"\"),\"\")","v":{"v":0,"d":"0 ₽"}},{"$f":"IFERROR(IF(ДанныеПотенциальногоКлиента[Прогноз завершения сделки] <>\"\",IF(ДанныеПотенциальногоКлиента[Прогноз завершения сделки] = \"сентябрь\",ДанныеПотенциальногоКлиента[Взвешенный прогноз],0),\"\"),\"\")","v":{"v":0,"d":"0 ₽"}},{"$f":"IFERROR(IF(ДанныеПотенциальногоКлиента[Прогноз завершения сделки] <>\"\",IF(ДанныеПотенциальногоКлиента[Прогноз завершения сделки] = \"октябрь\",ДанныеПотенциальногоКлиента[Взвешенный прогноз],0),\"\"),\"\")","v":{"v":0,"d":"0 ₽"}},{"$f":"IFERROR(IF(ДанныеПотенциальногоКлиента[Прогноз завершения сделки] <>\"\",IF(ДанныеПотенциальногоКлиента[Прогноз завершения сделки] = \"ноябрь\",ДанныеПотенциальногоКлиента[Взвешенный прогноз],0),\"\"),\"\")","v":{"v":0,"d":"0 ₽"}},{"$f":"IFERROR(IF(ДанныеПотенциальногоКлиента[Прогноз завершения сделки] <>\"\",IF(ДанныеПотенциальногоКлиента[Прогноз завершения сделки] = \"декабрь\",ДанныеПотенциальногоКлиента[Взвешенный прогноз],0),\"\"),\"\")","v":{"v":0,"d":"0 ₽"}}]
[null,{"$f":"IFERROR(IF(AND(ДанныеПотенциальногоКлиента[Название потенциального клиента] <> \"\", ROW(ПрогнозируемыеПродажи[Название потенциального клиента])<>ПоследняяЗапись),ДанныеПотенциальногоКлиента[Название потенциального клиента], \"\"),\"\")","v":"Alpine Ski House"},{"$f":"IFERROR(IF(ДанныеПотенциальногоКлиента[Прогноз завершения сделки] <>\"\",IF(ДанныеПотенциальногоКлиента[Прогноз завершения сделки]= \"январь\",ДанныеПотенциальногоКлиента[Взвешенный прогноз],0),\"\"),\"\")","v":{"v":0,"d":"0 ₽"}},{"$f":"IFERROR(IF(ДанныеПотенциальногоКлиента[Прогноз завершения сделки] <>\"\",IF(ДанныеПотенциальногоКлиента[Прогноз завершения сделки] = \"февраль\",ДанныеПотенциальногоКлиента[Взвешенный прогноз],0),\"\"),\"\")","v":{"v":0,"d":"0 ₽"}},{"$f":"IFERROR(IF(ДанныеПотенциальногоКлиента[Прогноз завершения сделки] <>\"\",IF(ДанныеПотенциальногоКлиента[Прогноз завершения сделки] = \"март\",ДанныеПотенциальногоКлиента[Взвешенный прогноз],0),\"\"),\"\")","v":{"v":20000,"d":"20,000 ₽"}},{"$f":"IFERROR(IF(ДанныеПотенциальногоКлиента[Прогноз завершения сделки] <>\"\",IF(ДанныеПотенциальногоКлиента[Прогноз завершения сделки] = \"апрель\",ДанныеПотенциальногоКлиента[Взвешенный прогноз],0),\"\"),\"\")","v":{"v":0,"d":"0 ₽"}},{"$f":"IFERROR(IF(ДанныеПотенциальногоКлиента[Прогноз завершения сделки] <>\"\",IF(ДанныеПотенциальногоКлиента[Прогноз завершения сделки] = \"май\",ДанныеПотенциальногоКлиента[Взвешенный прогноз],0),\"\"),\"\")","v":{"v":0,"d":"0 ₽"}},{"$f":"IFERROR(IF(ДанныеПотенциальногоКлиента[Прогноз завершения сделки] <>\"\",IF(ДанныеПотенциальногоКлиента[Прогноз завершения сделки] = \"июнь\",ДанныеПотенциальногоКлиента[Взвешенный прогноз],0),\"\"),\"\")","v":{"v":0,"d":"0 ₽"}},{"$f":"IFERROR(IF(ДанныеПотенциальногоКлиента[Прогноз завершения сделки] <>\"\",IF(ДанныеПотенциальногоКлиента[Прогноз завершения сделки] = \"июль\",ДанныеПотенциальногоКлиента[Взвешенный прогноз],0),\"\"),\"\")","v":{"v":0,"d":"0 ₽"}},{"$f":"IFERROR(IF(ДанныеПотенциальногоКлиента[Прогноз завершения сделки] <>\"\",IF(ДанныеПотенциальногоКлиента[Прогноз завершения сделки] = \"август\",ДанныеПотенциальногоКлиента[Взвешенный прогноз],0),\"\"),\"\")","v":{"v":0,"d":"0 ₽"}},{"$f":"IFERROR(IF(ДанныеПотенциальногоКлиента[Прогноз завершения сделки] <>\"\",IF(ДанныеПотенциальногоКлиента[Прогноз завершения сделки] = \"сентябрь\",ДанныеПотенциальногоКлиента[Взвешенный прогноз],0),\"\"),\"\")","v":{"v":0,"d":"0 ₽"}},{"$f":"IFERROR(IF(ДанныеПотенциальногоКлиента[Прогноз завершения сделки] <>\"\",IF(ДанныеПотенциальногоКлиента[Прогноз завершения сделки] = \"октябрь\",ДанныеПотенциальногоКлиента[Взвешенный прогноз],0),\"\"),\"\")","v":{"v":0,"d":"0 ₽"}},{"$f":"IFERROR(IF(ДанныеПотенциальногоКлиента[Прогноз завершения сделки] <>\"\",IF(ДанныеПотенциальногоКлиента[Прогноз завершения сделки] = \"ноябрь\",ДанныеПотенциальногоКлиента[Взвешенный прогноз],0),\"\"),\"\")","v":{"v":0,"d":"0 ₽"}},{"$f":"IFERROR(IF(ДанныеПотенциальногоКлиента[Прогноз завершения сделки] <>\"\",IF(ДанныеПотенциальногоКлиента[Прогноз завершения сделки] = \"декабрь\",ДанныеПотенциальногоКлиента[Взвешенный прогноз],0),\"\"),\"\")","v":{"v":0,"d":"0 ₽"}}]
[null,{"$f":"IFERROR(IF(AND(ДанныеПотенциальногоКлиента[Название потенциального клиента] <> \"\", ROW(ПрогнозируемыеПродажи[Название потенциального клиента])<>ПоследняяЗапись),ДанныеПотенциальногоКлиента[Название потенциального клиента], \"\"),\"\")","v":""},{"$f":"IFERROR(IF(ДанныеПотенциальногоКлиента[Прогноз завершения сделки] <>\"\",IF(ДанныеПотенциальногоКлиента[Прогноз завершения сделки]= \"январь\",ДанныеПотенциальногоКлиента[Взвешенный прогноз],0),\"\"),\"\")","v":""},{"$f":"IFERROR(IF(ДанныеПотенциальногоКлиента[Прогноз завершения сделки] <>\"\",IF(ДанныеПотенциальногоКлиента[Прогноз завершения сделки] = \"февраль\",ДанныеПотенциальногоКлиента[Взвешенный прогноз],0),\"\"),\"\")","v":""},{"$f":"IFERROR(IF(ДанныеПотенциальногоКлиента[Прогноз завершения сделки] <>\"\",IF(ДанныеПотенциальногоКлиента[Прогноз завершения сделки] = \"март\",ДанныеПотенциальногоКлиента[Взвешенный прогноз],0),\"\"),\"\")","v":""},{"$f":"IFERROR(IF(ДанныеПотенциальногоКлиента[Прогноз завершения сделки] <>\"\",IF(ДанныеПотенциальногоКлиента[Прогноз завершения сделки] = \"апрель\",ДанныеПотенциальногоКлиента[Взвешенный прогноз],0),\"\"),\"\")","v":""},{"$f":"IFERROR(IF(ДанныеПотенциальногоКлиента[Прогноз завершения сделки] <>\"\",IF(ДанныеПотенциальногоКлиента[Прогноз завершения сделки] = \"май\",ДанныеПотенциальногоКлиента[Взвешенный прогноз],0),\"\"),\"\")","v":""},{"$f":"IFERROR(IF(ДанныеПотенциальногоКлиента[Прогноз завершения сделки] <>\"\",IF(ДанныеПотенциальногоКлиента[Прогноз завершения сделки] = \"июнь\",ДанныеПотенциальногоКлиента[Взвешенный прогноз],0),\"\"),\"\")","v":""},{"$f":"IFERROR(IF(ДанныеПотенциальногоКлиента[Прогноз завершения сделки] <>\"\",IF(ДанныеПотенциальногоКлиента[Прогноз завершения сделки] = \"июль\",ДанныеПотенциальногоКлиента[Взвешенный прогноз],0),\"\"),\"\")","v":""},{"$f":"IFERROR(IF(ДанныеПотенциальногоКлиента[Прогноз завершения сделки] <>\"\",IF(ДанныеПотенциальногоКлиента[Прогноз завершения сделки] = \"август\",ДанныеПотенциальногоКлиента[Взвешенный прогноз],0),\"\"),\"\")","v":""},{"$f":"IFERROR(IF(ДанныеПотенциальногоКлиента[Прогноз завершения сделки] <>\"\",IF(ДанныеПотенциальногоКлиента[Прогноз завершения сделки] = \"сентябрь\",ДанныеПотенциальногоКлиента[Взвешенный прогноз],0),\"\"),\"\")","v":""},{"$f":"IFERROR(IF(ДанныеПотенциальногоКлиента[Прогноз завершения сделки] <>\"\",IF(ДанныеПотенциальногоКлиента[Прогноз завершения сделки] = \"октябрь\",ДанныеПотенциальногоКлиента[Взвешенный прогноз],0),\"\"),\"\")","v":""},{"$f":"IFERROR(IF(ДанныеПотенциальногоКлиента[Прогноз завершения сделки] <>\"\",IF(ДанныеПотенциальногоКлиента[Прогноз завершения сделки] = \"ноябрь\",ДанныеПотенциальногоКлиента[Взвешенный прогноз],0),\"\"),\"\")","v":""},{"$f":"IFERROR(IF(ДанныеПотенциальногоКлиента[Прогноз завершения сделки] <>\"\",IF(ДанныеПотенциальногоКлиента[Прогноз завершения сделки] = \"декабрь\",ДанныеПотенциальногоКлиента[Взвешенный прогноз],0),\"\"),\"\")","v":""}]
[null,{"$f":"IFERROR(IF(AND(ДанныеПотенциальногоКлиента[Название потенциального клиента] <> \"\", ROW(ПрогнозируемыеПродажи[Название потенциального клиента])<>ПоследняяЗапись),ДанныеПотенциальногоКлиента[Название потенциального клиента], \"\"),\"\")","v":""},{"$f":"IFERROR(IF(ДанныеПотенциальногоКлиента[Прогноз завершения сделки] <>\"\",IF(ДанныеПотенциальногоКлиента[Прогноз завершения сделки]= \"январь\",ДанныеПотенциальногоКлиента[Взвешенный прогноз],0),\"\"),\"\")","v":""},{"$f":"IFERROR(IF(ДанныеПотенциальногоКлиента[Прогноз завершения сделки] <>\"\",IF(ДанныеПотенциальногоКлиента[Прогноз завершения сделки] = \"февраль\",ДанныеПотенциальногоКлиента[Взвешенный прогноз],0),\"\"),\"\")","v":""},{"$f":"IFERROR(IF(ДанныеПотенциальногоКлиента[Прогноз завершения сделки] <>\"\",IF(ДанныеПотенциальногоКлиента[Прогноз завершения сделки] = \"март\",ДанныеПотенциальногоКлиента[Взвешенный прогноз],0),\"\"),\"\")","v":""},{"$f":"IFERROR(IF(ДанныеПотенциальногоКлиента[Прогноз завершения сделки] <>\"\",IF(ДанныеПотенциальногоКлиента[Прогноз завершения сделки] = \"апрель\",ДанныеПотенциальногоКлиента[Взвешенный прогноз],0),\"\"),\"\")","v":""},{"$f":"IFERROR(IF(ДанныеПотенциальногоКлиента[Прогноз завершения сделки] <>\"\",IF(ДанныеПотенциальногоКлиента[Прогноз завершения сделки] = \"май\",ДанныеПотенциальногоКлиента[Взвешенный прогноз],0),\"\"),\"\")","v":""},{"$f":"IFERROR(IF(ДанныеПотенциальногоКлиента[Прогноз завершения сделки] <>\"\",IF(ДанныеПотенциальногоКлиента[Прогноз завершения сделки] = \"июнь\",ДанныеПотенциальногоКлиента[Взвешенный прогноз],0),\"\"),\"\")","v":""},{"$f":"IFERROR(IF(ДанныеПотенциальногоКлиента[Прогноз завершения сделки] <>\"\",IF(ДанныеПотенциальногоКлиента[Прогноз завершения сделки] = \"июль\",ДанныеПотенциальногоКлиента[Взвешенный прогноз],0),\"\"),\"\")","v":""},{"$f":"IFERROR(IF(ДанныеПотенциальногоКлиента[Прогноз завершения сделки] <>\"\",IF(ДанныеПотенциальногоКлиента[Прогноз завершения сделки] = \"август\",ДанныеПотенциальногоКлиента[Взвешенный прогноз],0),\"\"),\"\")","v":""},{"$f":"IFERROR(IF(ДанныеПотенциальногоКлиента[Прогноз завершения сделки] <>\"\",IF(ДанныеПотенциальногоКлиента[Прогноз завершения сделки] = \"сентябрь\",ДанныеПотенциальногоКлиента[Взвешенный прогноз],0),\"\"),\"\")","v":""},{"$f":"IFERROR(IF(ДанныеПотенциальногоКлиента[Прогноз завершения сделки] <>\"\",IF(ДанныеПотенциальногоКлиента[Прогноз завершения сделки] = \"октябрь\",ДанныеПотенциальногоКлиента[Взвешенный прогноз],0),\"\"),\"\")","v":""},{"$f":"IFERROR(IF(ДанныеПотенциальногоКлиента[Прогноз завершения сделки] <>\"\",IF(ДанныеПотенциальногоКлиента[Прогноз завершения сделки] = \"ноябрь\",ДанныеПотенциальногоКлиента[Взвешенный прогноз],0),\"\"),\"\")","v":""},{"$f":"IFERROR(IF(ДанныеПотенциальногоКлиента[Прогноз завершения сделки] <>\"\",IF(ДанныеПотенциальногоКлиента[Прогноз завершения сделки] = \"декабрь\",ДанныеПотенциальногоКлиента[Взвешенный прогноз],0),\"\"),\"\")","v":""}]
[null,{"$f":"IFERROR(IF(AND(ДанныеПотенциальногоКлиента[Название потенциального клиента] <> \"\", ROW(ПрогнозируемыеПродажи[Название потенциального клиента])<>ПоследняяЗапись),ДанныеПотенциальногоКлиента[Название потенциального клиента], \"\"),\"\")","v":""},{"$f":"IFERROR(IF(ДанныеПотенциальногоКлиента[Прогноз завершения сделки] <>\"\",IF(ДанныеПотенциальногоКлиента[Прогноз завершения сделки]= \"январь\",ДанныеПотенциальногоКлиента[Взвешенный прогноз],0),\"\"),\"\")","v":""},{"$f":"IFERROR(IF(ДанныеПотенциальногоКлиента[Прогноз завершения сделки] <>\"\",IF(ДанныеПотенциальногоКлиента[Прогноз завершения сделки] = \"февраль\",ДанныеПотенциальногоКлиента[Взвешенный прогноз],0),\"\"),\"\")","v":""},{"$f":"IFERROR(IF(ДанныеПотенциальногоКлиента[Прогноз завершения сделки] <>\"\",IF(ДанныеПотенциальногоКлиента[Прогноз завершения сделки] = \"март\",ДанныеПотенциальногоКлиента[Взвешенный прогноз],0),\"\"),\"\")","v":""},{"$f":"IFERROR(IF(ДанныеПотенциальногоКлиента[Прогноз завершения сделки] <>\"\",IF(ДанныеПотенциальногоКлиента[Прогноз завершения сделки] = \"апрель\",ДанныеПотенциальногоКлиента[Взвешенный прогноз],0),\"\"),\"\")","v":""},{"$f":"IFERROR(IF(ДанныеПотенциальногоКлиента[Прогноз завершения сделки] <>\"\",IF(ДанныеПотенциальногоКлиента[Прогноз завершения сделки] = \"май\",ДанныеПотенциальногоКлиента[Взвешенный прогноз],0),\"\"),\"\")","v":""},{"$f":"IFERROR(IF(ДанныеПотенциальногоКлиента[Прогноз завершения сделки] <>\"\",IF(ДанныеПотенциальногоКлиента[Прогноз завершения сделки] = \"июнь\",ДанныеПотенциальногоКлиента[Взвешенный прогноз],0),\"\"),\"\")","v":""},{"$f":"IFERROR(IF(ДанныеПотенциальногоКлиента[Прогноз завершения сделки] <>\"\",IF(ДанныеПотенциальногоКлиента[Прогноз завершения сделки] = \"июль\",ДанныеПотенциальногоКлиента[Взвешенный прогноз],0),\"\"),\"\")","v":""},{"$f":"IFERROR(IF(ДанныеПотенциальногоКлиента[Прогноз завершения сделки] <>\"\",IF(ДанныеПотенциальногоКлиента[Прогноз завершения сделки] = \"август\",ДанныеПотенциальногоКлиента[Взвешенный прогноз],0),\"\"),\"\")","v":""},{"$f":"IFERROR(IF(ДанныеПотенциальногоКлиента[Прогноз завершения сделки] <>\"\",IF(ДанныеПотенциальногоКлиента[Прогноз завершения сделки] = \"сентябрь\",ДанныеПотенциальногоКлиента[Взвешенный прогноз],0),\"\"),\"\")","v":""},{"$f":"IFERROR(IF(ДанныеПотенциальногоКлиента[Прогноз завершения сделки] <>\"\",IF(ДанныеПотенциальногоКлиента[Прогноз завершения сделки] = \"октябрь\",ДанныеПотенциальногоКлиента[Взвешенный прогноз],0),\"\"),\"\")","v":""},{"$f":"IFERROR(IF(ДанныеПотенциальногоКлиента[Прогноз завершения сделки] <>\"\",IF(ДанныеПотенциальногоКлиента[Прогноз завершения сделки] = \"ноябрь\",ДанныеПотенциальногоКлиента[Взвешенный прогноз],0),\"\"),\"\")","v":""},{"$f":"IFERROR(IF(ДанныеПотенциальногоКлиента[Прогноз завершения сделки] <>\"\",IF(ДанныеПотенциальногоКлиента[Прогноз завершения сделки] = \"декабрь\",ДанныеПотенциальногоКлиента[Взвешенный прогноз],0),\"\"),\"\")","v":""}]
[null,{"$f":"IFERROR(IF(AND(ДанныеПотенциальногоКлиента[Название потенциального клиента] <> \"\", ROW(ПрогнозируемыеПродажи[Название потенциального клиента])<>ПоследняяЗапись),ДанныеПотенциальногоКлиента[Название потенциального клиента], \"\"),\"\")","v":""},{"$f":"IFERROR(IF(ДанныеПотенциальногоКлиента[Прогноз завершения сделки] <>\"\",IF(ДанныеПотенциальногоКлиента[Прогноз завершения сделки]= \"январь\",ДанныеПотенциальногоКлиента[Взвешенный прогноз],0),\"\"),\"\")","v":""},{"$f":"IFERROR(IF(ДанныеПотенциальногоКлиента[Прогноз завершения сделки] <>\"\",IF(ДанныеПотенциальногоКлиента[Прогноз завершения сделки] = \"февраль\",ДанныеПотенциальногоКлиента[Взвешенный прогноз],0),\"\"),\"\")","v":""},{"$f":"IFERROR(IF(ДанныеПотенциальногоКлиента[Прогноз завершения сделки] <>\"\",IF(ДанныеПотенциальногоКлиента[Прогноз завершения сделки] = \"март\",ДанныеПотенциальногоКлиента[Взвешенный прогноз],0),\"\"),\"\")","v":""},{"$f":"IFERROR(IF(ДанныеПотенциальногоКлиента[Прогноз завершения сделки] <>\"\",IF(ДанныеПотенциальногоКлиента[Прогноз завершения сделки] = \"апрель\",ДанныеПотенциальногоКлиента[Взвешенный прогноз],0),\"\"),\"\")","v":""},{"$f":"IFERROR(IF(ДанныеПотенциальногоКлиента[Прогноз завершения сделки] <>\"\",IF(ДанныеПотенциальногоКлиента[Прогноз завершения сделки] = \"май\",ДанныеПотенциальногоКлиента[Взвешенный прогноз],0),\"\"),\"\")","v":""},{"$f":"IFERROR(IF(ДанныеПотенциальногоКлиента[Прогноз завершения сделки] <>\"\",IF(ДанныеПотенциальногоКлиента[Прогноз завершения сделки] = \"июнь\",ДанныеПотенциальногоКлиента[Взвешенный прогноз],0),\"\"),\"\")","v":""},{"$f":"IFERROR(IF(ДанныеПотенциальногоКлиента[Прогноз завершения сделки] <>\"\",IF(ДанныеПотенциальногоКлиента[Прогноз завершения сделки] = \"июль\",ДанныеПотенциальногоКлиента[Взвешенный прогноз],0),\"\"),\"\")","v":""},{"$f":"IFERROR(IF(ДанныеПотенциальногоКлиента[Прогноз завершения сделки] <>\"\",IF(ДанныеПотенциальногоКлиента[Прогноз завершения сделки] = \"август\",ДанныеПотенциальногоКлиента[Взвешенный прогноз],0),\"\"),\"\")","v":""},{"$f":"IFERROR(IF(ДанныеПотенциальногоКлиента[Прогноз завершения сделки] <>\"\",IF(ДанныеПотенциальногоКлиента[Прогноз завершения сделки] = \"сентябрь\",ДанныеПотенциальногоКлиента[Взвешенный прогноз],0),\"\"),\"\")","v":""},{"$f":"IFERROR(IF(ДанныеПотенциальногоКлиента[Прогноз завершения сделки] <>\"\",IF(ДанныеПотенциальногоКлиента[Прогноз завершения сделки] = \"октябрь\",ДанныеПотенциальногоКлиента[Взвешенный прогноз],0),\"\"),\"\")","v":""},{"$f":"IFERROR(IF(ДанныеПотенциальногоКлиента[Прогноз завершения сделки] <>\"\",IF(ДанныеПотенциальногоКлиента[Прогноз завершения сделки] = \"ноябрь\",ДанныеПотенциальногоКлиента[Взвешенный прогноз],0),\"\"),\"\")","v":""},{"$f":"IFERROR(IF(ДанныеПотенциальногоКлиента[Прогноз завершения сделки] <>\"\",IF(ДанныеПотенциальногоКлиента[Прогноз завершения сделки] = \"декабрь\",ДанныеПотенциальногоКлиента[Взвешенный прогноз],0),\"\"),\"\")","v":""}]
[null,{"$f":"IFERROR(IF(AND(ДанныеПотенциальногоКлиента[Название потенциального клиента] <> \"\", ROW(ПрогнозируемыеПродажи[Название потенциального клиента])<>ПоследняяЗапись),ДанныеПотенциальногоКлиента[Название потенциального клиента], \"\"),\"\")","v":""},{"$f":"IFERROR(IF(ДанныеПотенциальногоКлиента[Прогноз завершения сделки] <>\"\",IF(ДанныеПотенциальногоКлиента[Прогноз завершения сделки]= \"январь\",ДанныеПотенциальногоКлиента[Взвешенный прогноз],0),\"\"),\"\")","v":""},{"$f":"IFERROR(IF(ДанныеПотенциальногоКлиента[Прогноз завершения сделки] <>\"\",IF(ДанныеПотенциальногоКлиента[Прогноз завершения сделки] = \"февраль\",ДанныеПотенциальногоКлиента[Взвешенный прогноз],0),\"\"),\"\")","v":""},{"$f":"IFERROR(IF(ДанныеПотенциальногоКлиента[Прогноз завершения сделки] <>\"\",IF(ДанныеПотенциальногоКлиента[Прогноз завершения сделки] = \"март\",ДанныеПотенциальногоКлиента[Взвешенный прогноз],0),\"\"),\"\")","v":""},{"$f":"IFERROR(IF(ДанныеПотенциальногоКлиента[Прогноз завершения сделки] <>\"\",IF(ДанныеПотенциальногоКлиента[Прогноз завершения сделки] = \"апрель\",ДанныеПотенциальногоКлиента[Взвешенный прогноз],0),\"\"),\"\")","v":""},{"$f":"IFERROR(IF(ДанныеПотенциальногоКлиента[Прогноз завершения сделки] <>\"\",IF(ДанныеПотенциальногоКлиента[Прогноз завершения сделки] = \"май\",ДанныеПотенциальногоКлиента[Взвешенный прогноз],0),\"\"),\"\")","v":""},{"$f":"IFERROR(IF(ДанныеПотенциальногоКлиента[Прогноз завершения сделки] <>\"\",IF(ДанныеПотенциальногоКлиента[Прогноз завершения сделки] = \"июнь\",ДанныеПотенциальногоКлиента[Взвешенный прогноз],0),\"\"),\"\")","v":""},{"$f":"IFERROR(IF(ДанныеПотенциальногоКлиента[Прогноз завершения сделки] <>\"\",IF(ДанныеПотенциальногоКлиента[Прогноз завершения сделки] = \"июль\",ДанныеПотенциальногоКлиента[Взвешенный прогноз],0),\"\"),\"\")","v":""},{"$f":"IFERROR(IF(ДанныеПотенциальногоКлиента[Прогноз завершения сделки] <>\"\",IF(ДанныеПотенциальногоКлиента[Прогноз завершения сделки] = \"август\",ДанныеПотенциальногоКлиента[Взвешенный прогноз],0),\"\"),\"\")","v":""},{"$f":"IFERROR(IF(ДанныеПотенциальногоКлиента[Прогноз завершения сделки] <>\"\",IF(ДанныеПотенциальногоКлиента[Прогноз завершения сделки] = \"сентябрь\",ДанныеПотенциальногоКлиента[Взвешенный прогноз],0),\"\"),\"\")","v":""},{"$f":"IFERROR(IF(ДанныеПотенциальногоКлиента[Прогноз завершения сделки] <>\"\",IF(ДанныеПотенциальногоКлиента[Прогноз завершения сделки] = \"октябрь\",ДанныеПотенциальногоКлиента[Взвешенный прогноз],0),\"\"),\"\")","v":""},{"$f":"IFERROR(IF(ДанныеПотенциальногоКлиента[Прогноз завершения сделки] <>\"\",IF(ДанныеПотенциальногоКлиента[Прогноз завершения сделки] = \"ноябрь\",ДанныеПотенциальногоКлиента[Взвешенный прогноз],0),\"\"),\"\")","v":""},{"$f":"IFERROR(IF(ДанныеПотенциальногоКлиента[Прогноз завершения сделки] <>\"\",IF(ДанныеПотенциальногоКлиента[Прогноз завершения сделки] = \"декабрь\",ДанныеПотенциальногоКлиента[Взвешенный прогноз],0),\"\"),\"\")","v":""}]
[null,{"$f":"IFERROR(IF(AND(ДанныеПотенциальногоКлиента[Название потенциального клиента] <> \"\", ROW(ПрогнозируемыеПродажи[Название потенциального клиента])<>ПоследняяЗапись),ДанныеПотенциальногоКлиента[Название потенциального клиента], \"\"),\"\")","v":""},{"$f":"IFERROR(IF(ДанныеПотенциальногоКлиента[Прогноз завершения сделки] <>\"\",IF(ДанныеПотенциальногоКлиента[Прогноз завершения сделки]= \"январь\",ДанныеПотенциальногоКлиента[Взвешенный прогноз],0),\"\"),\"\")","v":""},{"$f":"IFERROR(IF(ДанныеПотенциальногоКлиента[Прогноз завершения сделки] <>\"\",IF(ДанныеПотенциальногоКлиента[Прогноз завершения сделки] = \"февраль\",ДанныеПотенциальногоКлиента[Взвешенный прогноз],0),\"\"),\"\")","v":""},{"$f":"IFERROR(IF(ДанныеПотенциальногоКлиента[Прогноз завершения сделки] <>\"\",IF(ДанныеПотенциальногоКлиента[Прогноз завершения сделки] = \"март\",ДанныеПотенциальногоКлиента[Взвешенный прогноз],0),\"\"),\"\")","v":""},{"$f":"IFERROR(IF(ДанныеПотенциальногоКлиента[Прогноз завершения сделки] <>\"\",IF(ДанныеПотенциальногоКлиента[Прогноз завершения сделки] = \"апрель\",ДанныеПотенциальногоКлиента[Взвешенный прогноз],0),\"\"),\"\")","v":""},{"$f":"IFERROR(IF(ДанныеПотенциальногоКлиента[Прогноз завершения сделки] <>\"\",IF(ДанныеПотенциальногоКлиента[Прогноз завершения сделки] = \"май\",ДанныеПотенциальногоКлиента[Взвешенный прогноз],0),\"\"),\"\")","v":""},{"$f":"IFERROR(IF(ДанныеПотенциальногоКлиента[Прогноз завершения сделки] <>\"\",IF(ДанныеПотенциальногоКлиента[Прогноз завершения сделки] = \"июнь\",ДанныеПотенциальногоКлиента[Взвешенный прогноз],0),\"\"),\"\")","v":""},{"$f":"IFERROR(IF(ДанныеПотенциальногоКлиента[Прогноз завершения сделки] <>\"\",IF(ДанныеПотенциальногоКлиента[Прогноз завершения сделки] = \"июль\",ДанныеПотенциальногоКлиента[Взвешенный прогноз],0),\"\"),\"\")","v":""},{"$f":"IFERROR(IF(ДанныеПотенциальногоКлиента[Прогноз завершения сделки] <>\"\",IF(ДанныеПотенциальногоКлиента[Прогноз завершения сделки] = \"август\",ДанныеПотенциальногоКлиента[Взвешенный прогноз],0),\"\"),\"\")","v":""},{"$f":"IFERROR(IF(ДанныеПотенциальногоКлиента[Прогноз завершения сделки] <>\"\",IF(ДанныеПотенциальногоКлиента[Прогноз завершения сделки] = \"сентябрь\",ДанныеПотенциальногоКлиента[Взвешенный прогноз],0),\"\"),\"\")","v":""},{"$f":"IFERROR(IF(ДанныеПотенциальногоКлиента[Прогноз завершения сделки] <>\"\",IF(ДанныеПотенциальногоКлиента[Прогноз завершения сделки] = \"октябрь\",ДанныеПотенциальногоКлиента[Взвешенный прогноз],0),\"\"),\"\")","v":""},{"$f":"IFERROR(IF(ДанныеПотенциальногоКлиента[Прогноз завершения сделки] <>\"\",IF(ДанныеПотенциальногоКлиента[Прогноз завершения сделки] = \"ноябрь\",ДанныеПотенциальногоКлиента[Взвешенный прогноз],0),\"\"),\"\")","v":""},{"$f":"IFERROR(IF(ДанныеПотенциальногоКлиента[Прогноз завершения сделки] <>\"\",IF(ДанныеПотенциальногоКлиента[Прогноз завершения сделки] = \"декабрь\",ДанныеПотенциальногоКлиента[Взвешенный прогноз],0),\"\"),\"\")","v":""}]
[null,{"$f":"IFERROR(IF(AND(ДанныеПотенциальногоКлиента[Название потенциального клиента] <> \"\", ROW(ПрогнозируемыеПродажи[Название потенциального клиента])<>ПоследняяЗапись),ДанныеПотенциальногоКлиента[Название потенциального клиента], \"\"),\"\")","v":""},{"$f":"IFERROR(IF(ДанныеПотенциальногоКлиента[Прогноз завершения сделки] <>\"\",IF(ДанныеПотенциальногоКлиента[Прогноз завершения сделки]= \"январь\",ДанныеПотенциальногоКлиента[Взвешенный прогноз],0),\"\"),\"\")","v":""},{"$f":"IFERROR(IF(ДанныеПотенциальногоКлиента[Прогноз завершения сделки] <>\"\",IF(ДанныеПотенциальногоКлиента[Прогноз завершения сделки] = \"февраль\",ДанныеПотенциальногоКлиента[Взвешенный прогноз],0),\"\"),\"\")","v":""},{"$f":"IFERROR(IF(ДанныеПотенциальногоКлиента[Прогноз завершения сделки] <>\"\",IF(ДанныеПотенциальногоКлиента[Прогноз завершения сделки] = \"март\",ДанныеПотенциальногоКлиента[Взвешенный прогноз],0),\"\"),\"\")","v":""},{"$f":"IFERROR(IF(ДанныеПотенциальногоКлиента[Прогноз завершения сделки] <>\"\",IF(ДанныеПотенциальногоКлиента[Прогноз завершения сделки] = \"апрель\",ДанныеПотенциальногоКлиента[Взвешенный прогноз],0),\"\"),\"\")","v":""},{"$f":"IFERROR(IF(ДанныеПотенциальногоКлиента[Прогноз завершения сделки] <>\"\",IF(ДанныеПотенциальногоКлиента[Прогноз завершения сделки] = \"май\",ДанныеПотенциальногоКлиента[Взвешенный прогноз],0),\"\"),\"\")","v":""},{"$f":"IFERROR(IF(ДанныеПотенциальногоКлиента[Прогноз завершения сделки] <>\"\",IF(ДанныеПотенциальногоКлиента[Прогноз завершения сделки] = \"июнь\",ДанныеПотенциальногоКлиента[Взвешенный прогноз],0),\"\"),\"\")","v":""},{"$f":"IFERROR(IF(ДанныеПотенциальногоКлиента[Прогноз завершения сделки] <>\"\",IF(ДанныеПотенциальногоКлиента[Прогноз завершения сделки] = \"июль\",ДанныеПотенциальногоКлиента[Взвешенный прогноз],0),\"\"),\"\")","v":""},{"$f":"IFERROR(IF(ДанныеПотенциальногоКлиента[Прогноз завершения сделки] <>\"\",IF(ДанныеПотенциальногоКлиента[Прогноз завершения сделки] = \"август\",ДанныеПотенциальногоКлиента[Взвешенный прогноз],0),\"\"),\"\")","v":""},{"$f":"IFERROR(IF(ДанныеПотенциальногоКлиента[Прогноз завершения сделки] <>\"\",IF(ДанныеПотенциальногоКлиента[Прогноз завершения сделки] = \"сентябрь\",ДанныеПотенциальногоКлиента[Взвешенный прогноз],0),\"\"),\"\")","v":""},{"$f":"IFERROR(IF(ДанныеПотенциальногоКлиента[Прогноз завершения сделки] <>\"\",IF(ДанныеПотенциальногоКлиента[Прогноз завершения сделки] = \"октябрь\",ДанныеПотенциальногоКлиента[Взвешенный прогноз],0),\"\"),\"\")","v":""},{"$f":"IFERROR(IF(ДанныеПотенциальногоКлиента[Прогноз завершения сделки] <>\"\",IF(ДанныеПотенциальногоКлиента[Прогноз завершения сделки] = \"ноябрь\",ДанныеПотенциальногоКлиента[Взвешенный прогноз],0),\"\"),\"\")","v":""},{"$f":"IFERROR(IF(ДанныеПотенциальногоКлиента[Прогноз завершения сделки] <>\"\",IF(ДанныеПотенциальногоКлиента[Прогноз завершения сделки] = \"декабрь\",ДанныеПотенциальногоКлиента[Взвешенный прогноз],0),\"\"),\"\")","v":""}]
[null,{"$f":"IFERROR(IF(AND(ДанныеПотенциальногоКлиента[Название потенциального клиента] <> \"\", ROW(ПрогнозируемыеПродажи[Название потенциального клиента])<>ПоследняяЗапись),ДанныеПотенциальногоКлиента[Название потенциального клиента], \"\"),\"\")","v":""},{"$f":"IFERROR(IF(ДанныеПотенциальногоКлиента[Прогноз завершения сделки] <>\"\",IF(ДанныеПотенциальногоКлиента[Прогноз завершения сделки]= \"январь\",ДанныеПотенциальногоКлиента[Взвешенный прогноз],0),\"\"),\"\")","v":""},{"$f":"IFERROR(IF(ДанныеПотенциальногоКлиента[Прогноз завершения сделки] <>\"\",IF(ДанныеПотенциальногоКлиента[Прогноз завершения сделки] = \"февраль\",ДанныеПотенциальногоКлиента[Взвешенный прогноз],0),\"\"),\"\")","v":""},{"$f":"IFERROR(IF(ДанныеПотенциальногоКлиента[Прогноз завершения сделки] <>\"\",IF(ДанныеПотенциальногоКлиента[Прогноз завершения сделки] = \"март\",ДанныеПотенциальногоКлиента[Взвешенный прогноз],0),\"\"),\"\")","v":""},{"$f":"IFERROR(IF(ДанныеПотенциальногоКлиента[Прогноз завершения сделки] <>\"\",IF(ДанныеПотенциальногоКлиента[Прогноз завершения сделки] = \"апрель\",ДанныеПотенциальногоКлиента[Взвешенный прогноз],0),\"\"),\"\")","v":""},{"$f":"IFERROR(IF(ДанныеПотенциальногоКлиента[Прогноз завершения сделки] <>\"\",IF(ДанныеПотенциальногоКлиента[Прогноз завершения сделки] = \"май\",ДанныеПотенциальногоКлиента[Взвешенный прогноз],0),\"\"),\"\")","v":""},{"$f":"IFERROR(IF(ДанныеПотенциальногоКлиента[Прогноз завершения сделки] <>\"\",IF(ДанныеПотенциальногоКлиента[Прогноз завершения сделки] = \"июнь\",ДанныеПотенциальногоКлиента[Взвешенный прогноз],0),\"\"),\"\")","v":""},{"$f":"IFERROR(IF(ДанныеПотенциальногоКлиента[Прогноз завершения сделки] <>\"\",IF(ДанныеПотенциальногоКлиента[Прогноз завершения сделки] = \"июль\",ДанныеПотенциальногоКлиента[Взвешенный прогноз],0),\"\"),\"\")","v":""},{"$f":"IFERROR(IF(ДанныеПотенциальногоКлиента[Прогноз завершения сделки] <>\"\",IF(ДанныеПотенциальногоКлиента[Прогноз завершения сделки] = \"август\",ДанныеПотенциальногоКлиента[Взвешенный прогноз],0),\"\"),\"\")","v":""},{"$f":"IFERROR(IF(ДанныеПотенциальногоКлиента[Прогноз завершения сделки] <>\"\",IF(ДанныеПотенциальногоКлиента[Прогноз завершения сделки] = \"сентябрь\",ДанныеПотенциальногоКлиента[Взвешенный прогноз],0),\"\"),\"\")","v":""},{"$f":"IFERROR(IF(ДанныеПотенциальногоКлиента[Прогноз завершения сделки] <>\"\",IF(ДанныеПотенциальногоКлиента[Прогноз завершения сделки] = \"октябрь\",ДанныеПотенциальногоКлиента[Взвешенный прогноз],0),\"\"),\"\")","v":""},{"$f":"IFERROR(IF(ДанныеПотенциальногоКлиента[Прогноз завершения сделки] <>\"\",IF(ДанныеПотенциальногоКлиента[Прогноз завершения сделки] = \"ноябрь\",ДанныеПотенциальногоКлиента[Взвешенный прогноз],0),\"\"),\"\")","v":""},{"$f":"IFERROR(IF(ДанныеПотенциальногоКлиента[Прогноз завершения сделки] <>\"\",IF(ДанныеПотенциальногоКлиента[Прогноз завершения сделки] = \"декабрь\",ДанныеПотенциальногоКлиента[Взвешенный прогноз],0),\"\"),\"\")","v":""}]
[null,{"$f":"IFERROR(IF(AND(ДанныеПотенциальногоКлиента[Название потенциального клиента] <> \"\", ROW(ПрогнозируемыеПродажи[Название потенциального клиента])<>ПоследняяЗапись),ДанныеПотенциальногоКлиента[Название потенциального клиента], \"\"),\"\")","v":""},{"$f":"IFERROR(IF(ДанныеПотенциальногоКлиента[Прогноз завершения сделки] <>\"\",IF(ДанныеПотенциальногоКлиента[Прогноз завершения сделки]= \"январь\",ДанныеПотенциальногоКлиента[Взвешенный прогноз],0),\"\"),\"\")","v":""},{"$f":"IFERROR(IF(ДанныеПотенциальногоКлиента[Прогноз завершения сделки] <>\"\",IF(ДанныеПотенциальногоКлиента[Прогноз завершения сделки] = \"февраль\",ДанныеПотенциальногоКлиента[Взвешенный прогноз],0),\"\"),\"\")","v":""},{"$f":"IFERROR(IF(ДанныеПотенциальногоКлиента[Прогноз завершения сделки] <>\"\",IF(ДанныеПотенциальногоКлиента[Прогноз завершения сделки] = \"март\",ДанныеПотенциальногоКлиента[Взвешенный прогноз],0),\"\"),\"\")","v":""},{"$f":"IFERROR(IF(ДанныеПотенциальногоКлиента[Прогноз завершения сделки] <>\"\",IF(ДанныеПотенциальногоКлиента[Прогноз завершения сделки] = \"апрель\",ДанныеПотенциальногоКлиента[Взвешенный прогноз],0),\"\"),\"\")","v":""},{"$f":"IFERROR(IF(ДанныеПотенциальногоКлиента[Прогноз завершения сделки] <>\"\",IF(ДанныеПотенциальногоКлиента[Прогноз завершения сделки] = \"май\",ДанныеПотенциальногоКлиента[Взвешенный прогноз],0),\"\"),\"\")","v":""},{"$f":"IFERROR(IF(ДанныеПотенциальногоКлиента[Прогноз завершения сделки] <>\"\",IF(ДанныеПотенциальногоКлиента[Прогноз завершения сделки] = \"июнь\",ДанныеПотенциальногоКлиента[Взвешенный прогноз],0),\"\"),\"\")","v":""},{"$f":"IFERROR(IF(ДанныеПотенциальногоКлиента[Прогноз завершения сделки] <>\"\",IF(ДанныеПотенциальногоКлиента[Прогноз завершения сделки] = \"июль\",ДанныеПотенциальногоКлиента[Взвешенный прогноз],0),\"\"),\"\")","v":""},{"$f":"IFERROR(IF(ДанныеПотенциальногоКлиента[Прогноз завершения сделки] <>\"\",IF(ДанныеПотенциальногоКлиента[Прогноз завершения сделки] = \"август\",ДанныеПотенциальногоКлиента[Взвешенный прогноз],0),\"\"),\"\")","v":""},{"$f":"IFERROR(IF(ДанныеПотенциальногоКлиента[Прогноз завершения сделки] <>\"\",IF(ДанныеПотенциальногоКлиента[Прогноз завершения сделки] = \"сентябрь\",ДанныеПотенциальногоКлиента[Взвешенный прогноз],0),\"\"),\"\")","v":""},{"$f":"IFERROR(IF(ДанныеПотенциальногоКлиента[Прогноз завершения сделки] <>\"\",IF(ДанныеПотенциальногоКлиента[Прогноз завершения сделки] = \"октябрь\",ДанныеПотенциальногоКлиента[Взвешенный прогноз],0),\"\"),\"\")","v":""},{"$f":"IFERROR(IF(ДанныеПотенциальногоКлиента[Прогноз завершения сделки] <>\"\",IF(ДанныеПотенциальногоКлиента[Прогноз завершения сделки] = \"ноябрь\",ДанныеПотенциальногоКлиента[Взвешенный прогноз],0),\"\"),\"\")","v":""},{"$f":"IFERROR(IF(ДанныеПотенциальногоКлиента[Прогноз завершения сделки] <>\"\",IF(ДанныеПотенциальногоКлиента[Прогноз завершения сделки] = \"декабрь\",ДанныеПотенциальногоКлиента[Взвешенный прогноз],0),\"\"),\"\")","v":""}]
[null,{"$f":"IFERROR(IF(AND(ДанныеПотенциальногоКлиента[Название потенциального клиента] <> \"\", ROW(ПрогнозируемыеПродажи[Название потенциального клиента])<>ПоследняяЗапись),ДанныеПотенциальногоКлиента[Название потенциального клиента], \"\"),\"\")","v":""},{"$f":"IFERROR(IF(ДанныеПотенциальногоКлиента[Прогноз завершения сделки] <>\"\",IF(ДанныеПотенциальногоКлиента[Прогноз завершения сделки]= \"январь\",ДанныеПотенциальногоКлиента[Взвешенный прогноз],0),\"\"),\"\")","v":""},{"$f":"IFERROR(IF(ДанныеПотенциальногоКлиента[Прогноз завершения сделки] <>\"\",IF(ДанныеПотенциальногоКлиента[Прогноз завершения сделки] = \"февраль\",ДанныеПотенциальногоКлиента[Взвешенный прогноз],0),\"\"),\"\")","v":""},{"$f":"IFERROR(IF(ДанныеПотенциальногоКлиента[Прогноз завершения сделки] <>\"\",IF(ДанныеПотенциальногоКлиента[Прогноз завершения сделки] = \"март\",ДанныеПотенциальногоКлиента[Взвешенный прогноз],0),\"\"),\"\")","v":""},{"$f":"IFERROR(IF(ДанныеПотенциальногоКлиента[Прогноз завершения сделки] <>\"\",IF(ДанныеПотенциальногоКлиента[Прогноз завершения сделки] = \"апрель\",ДанныеПотенциальногоКлиента[Взвешенный прогноз],0),\"\"),\"\")","v":""},{"$f":"IFERROR(IF(ДанныеПотенциальногоКлиента[Прогноз завершения сделки] <>\"\",IF(ДанныеПотенциальногоКлиента[Прогноз завершения сделки] = \"май\",ДанныеПотенциальногоКлиента[Взвешенный прогноз],0),\"\"),\"\")","v":""},{"$f":"IFERROR(IF(ДанныеПотенциальногоКлиента[Прогноз завершения сделки] <>\"\",IF(ДанныеПотенциальногоКлиента[Прогноз завершения сделки] = \"июнь\",ДанныеПотенциальногоКлиента[Взвешенный прогноз],0),\"\"),\"\")","v":""},{"$f":"IFERROR(IF(ДанныеПотенциальногоКлиента[Прогноз завершения сделки] <>\"\",IF(ДанныеПотенциальногоКлиента[Прогноз завершения сделки] = \"июль\",ДанныеПотенциальногоКлиента[Взвешенный прогноз],0),\"\"),\"\")","v":""},{"$f":"IFERROR(IF(ДанныеПотенциальногоКлиента[Прогноз завершения сделки] <>\"\",IF(ДанныеПотенциальногоКлиента[Прогноз завершения сделки] = \"август\",ДанныеПотенциальногоКлиента[Взвешенный прогноз],0),\"\"),\"\")","v":""},{"$f":"IFERROR(IF(ДанныеПотенциальногоКлиента[Прогноз завершения сделки] <>\"\",IF(ДанныеПотенциальногоКлиента[Прогноз завершения сделки] = \"сентябрь\",ДанныеПотенциальногоКлиента[Взвешенный прогноз],0),\"\"),\"\")","v":""},{"$f":"IFERROR(IF(ДанныеПотенциальногоКлиента[Прогноз завершения сделки] <>\"\",IF(ДанныеПотенциальногоКлиента[Прогноз завершения сделки] = \"октябрь\",ДанныеПотенциальногоКлиента[Взвешенный прогноз],0),\"\"),\"\")","v":""},{"$f":"IFERROR(IF(ДанныеПотенциальногоКлиента[Прогноз завершения сделки] <>\"\",IF(ДанныеПотенциальногоКлиента[Прогноз завершения сделки] = \"ноябрь\",ДанныеПотенциальногоКлиента[Взвешенный прогноз],0),\"\"),\"\")","v":""},{"$f":"IFERROR(IF(ДанныеПотенциальногоКлиента[Прогноз завершения сделки] <>\"\",IF(ДанныеПотенциальногоКлиента[Прогноз завершения сделки] = \"декабрь\",ДанныеПотенциальногоКлиента[Взвешенный прогноз],0),\"\"),\"\")","v":""}]
[null,{"$f":"IFERROR(IF(AND(ДанныеПотенциальногоКлиента[Название потенциального клиента] <> \"\", ROW(ПрогнозируемыеПродажи[Название потенциального клиента])<>ПоследняяЗапись),ДанныеПотенциальногоКлиента[Название потенциального клиента], \"\"),\"\")","v":""},{"$f":"IFERROR(IF(ДанныеПотенциальногоКлиента[Прогноз завершения сделки] <>\"\",IF(ДанныеПотенциальногоКлиента[Прогноз завершения сделки]= \"январь\",ДанныеПотенциальногоКлиента[Взвешенный прогноз],0),\"\"),\"\")","v":""},{"$f":"IFERROR(IF(ДанныеПотенциальногоКлиента[Прогноз завершения сделки] <>\"\",IF(ДанныеПотенциальногоКлиента[Прогноз завершения сделки] = \"февраль\",ДанныеПотенциальногоКлиента[Взвешенный прогноз],0),\"\"),\"\")","v":""},{"$f":"IFERROR(IF(ДанныеПотенциальногоКлиента[Прогноз завершения сделки] <>\"\",IF(ДанныеПотенциальногоКлиента[Прогноз завершения сделки] = \"март\",ДанныеПотенциальногоКлиента[Взвешенный прогноз],0),\"\"),\"\")","v":""},{"$f":"IFERROR(IF(ДанныеПотенциальногоКлиента[Прогноз завершения сделки] <>\"\",IF(ДанныеПотенциальногоКлиента[Прогноз завершения сделки] = \"апрель\",ДанныеПотенциальногоКлиента[Взвешенный прогноз],0),\"\"),\"\")","v":""},{"$f":"IFERROR(IF(ДанныеПотенциальногоКлиента[Прогноз завершения сделки] <>\"\",IF(ДанныеПотенциальногоКлиента[Прогноз завершения сделки] = \"май\",ДанныеПотенциальногоКлиента[Взвешенный прогноз],0),\"\"),\"\")","v":""},{"$f":"IFERROR(IF(ДанныеПотенциальногоКлиента[Прогноз завершения сделки] <>\"\",IF(ДанныеПотенциальногоКлиента[Прогноз завершения сделки] = \"июнь\",ДанныеПотенциальногоКлиента[Взвешенный прогноз],0),\"\"),\"\")","v":""},{"$f":"IFERROR(IF(ДанныеПотенциальногоКлиента[Прогноз завершения сделки] <>\"\",IF(ДанныеПотенциальногоКлиента[Прогноз завершения сделки] = \"июль\",ДанныеПотенциальногоКлиента[Взвешенный прогноз],0),\"\"),\"\")","v":""},{"$f":"IFERROR(IF(ДанныеПотенциальногоКлиента[Прогноз завершения сделки] <>\"\",IF(ДанныеПотенциальногоКлиента[Прогноз завершения сделки] = \"август\",ДанныеПотенциальногоКлиента[Взвешенный прогноз],0),\"\"),\"\")","v":""},{"$f":"IFERROR(IF(ДанныеПотенциальногоКлиента[Прогноз завершения сделки] <>\"\",IF(ДанныеПотенциальногоКлиента[Прогноз завершения сделки] = \"сентябрь\",ДанныеПотенциальногоКлиента[Взвешенный прогноз],0),\"\"),\"\")","v":""},{"$f":"IFERROR(IF(ДанныеПотенциальногоКлиента[Прогноз завершения сделки] <>\"\",IF(ДанныеПотенциальногоКлиента[Прогноз завершения сделки] = \"октябрь\",ДанныеПотенциальногоКлиента[Взвешенный прогноз],0),\"\"),\"\")","v":""},{"$f":"IFERROR(IF(ДанныеПотенциальногоКлиента[Прогноз завершения сделки] <>\"\",IF(ДанныеПотенциальногоКлиента[Прогноз завершения сделки] = \"ноябрь\",ДанныеПотенциальногоКлиента[Взвешенный прогноз],0),\"\"),\"\")","v":""},{"$f":"IFERROR(IF(ДанныеПотенциальногоКлиента[Прогноз завершения сделки] <>\"\",IF(ДанныеПотенциальногоКлиента[Прогноз завершения сделки] = \"декабрь\",ДанныеПотенциальногоКлиента[Взвешенный прогноз],0),\"\"),\"\")","v":""}]
[null,"Итого",{"$f":"SUBTOTAL(109,ПрогнозируемыеПродажи[Прогноз на \nянварь])","v":{"v":270000,"d":"270,000 ₽"}},{"$f":"SUBTOTAL(109,ПрогнозируемыеПродажи[Прогноз на \nфевраль])","v":{"v":20000,"d":"20,000 ₽"}},{"$f":"SUBTOTAL(109,ПрогнозируемыеПродажи[Прогноз на \nмарт])","v":{"v":20000,"d":"20,000 ₽"}},{"$f":"SUBTOTAL(109,ПрогнозируемыеПродажи[Прогноз на \nапрель])","v":{"v":0,"d":"0 ₽"}},{"$f":"SUBTOTAL(109,ПрогнозируемыеПродажи[Прогноз на \nмай])","v":{"v":0,"d":"0 ₽"}},{"$f":"SUBTOTAL(109,ПрогнозируемыеПродажи[Прогноз на \nиюнь])","v":{"v":0,"d":"0 ₽"}},{"$f":"SUBTOTAL(109,ПрогнозируемыеПродажи[Прогноз на июль])","v":{"v":0,"d":"0 ₽"}},{"$f":"SUBTOTAL(109,ПрогнозируемыеПродажи[Прогноз на \nавгуст])","v":{"v":0,"d":"0 ₽"}},{"$f":"SUBTOTAL(109,ПрогнозируемыеПродажи[Прогноз на \nсентябрь])","v":{"v":0,"d":"0 ₽"}},{"$f":"SUBTOTAL(109,ПрогнозируемыеПродажи[Прогноз на \nоктябрь])","v":{"v":0,"d":"0 ₽"}},{"$f":"SUBTOTAL(109,ПрогнозируемыеПродажи[Прогноз на \nноябрь])","v":{"v":0,"d":"0 ₽"}},{"$f":"SUBTOTAL(109,ПрогнозируемыеПродажи[Прогноз на \nдекабрь])","v":{"v":0,"d":"0 ₽"}}]
[null,"Накопленная общая сумма",{"$f":"C20","v":{"v":270000,"d":"270,000 ₽"}},{"$f":"C21+D20","v":{"v":290000,"d":"290,000 ₽"}},{"$f":"D21+E20","v":{"v":310000,"d":"310,000 ₽"}},{"$f":"E21+F20","v":{"v":310000,"d":"310,000 ₽"}},{"$f":"F21+G20","v":{"v":310000,"d":"310,000 ₽"}},{"$f":"G21+H20","v":{"v":310000,"d":"310,000 ₽"}},{"$f":"H21+I20","v":{"v":310000,"d":"310,000 ₽"}},{"$f":"I21+J20","v":{"v":310000,"d":"310,000 ₽"}},{"$f":"J21+K20","v":{"v":310000,"d":"310,000 ₽"}},{"$f":"K21+L20","v":{"v":310000,"d":"310,000 ₽"}},{"$f":"L21+M20","v":{"v":310000,"d":"310,000 ₽"}},{"$f":"M21+N20","v":{"v":310000,"d":"310,000 ₽"}}]

{"sheet":"Ежемесячный взвешенный прогноз","index":2,"n_rows":3,"n_cols":2,"rows_kept":3}
[null,{"$f":"Название_компании","v":"Название компании"}]
[null,"Ежемесячный взвешенный прогноз"]
[null," "]